fUST/lending_fUST_20240103
["ID","MTS","AMOUNT","RATE_DAILY","PERIOD"]
[310015173,1704287521698,-154.81422293,0.0003853,5]
[310015174,1704287521728,-269.26616232,0.00038531,2]
[310015175,1704287521774,-313.11276879,0.00038531,2]
[310015176,1704287521822,-309.86449263,0.000388,45]
[310015177,1704287521878,-622.97726142,0.000388,45]
[310015178,1704287521932,-622.97726142,0.000388,45]
[310015179,1704287521986,-56.21414102,0.000388,45]
[310015180,1704287522029,-566.7631204,0.00040496,4]
[310015181,1704287522086,-622.97726142,0.00040496,4]
[310015182,1704287522135,-121.30431982,0.00040496,4]
[310015183,1704287522173,-501.6729416,0.00040496,30]
[310015184,1704287522233,-622.97726142,0.00040496,30]
[310015185,1704287522280,-622.97726142,0.00040496,30]
[310015186,1704287522355,-622.97726142,0.00040496,30]
[310015187,1704287522462,-622.97726142,0.00040496,30]
[310015188,1704287522677,-622.97726142,0.00040496,30]
[310015189,1704287522712,-622.97726142,0.00040496,30]
[310015190,1704287522753,-622.97726142,0.00040496,30]
[310015191,1704287522796,-622.97726142,0.00040496,30]
[310015192,1704287522828,-622.97726142,0.00040496,30]
[310015193,1704287522864,-622.97726142,0.00040496,30]
[310015194,1704287522898,-622.97726142,0.00040496,30]
[310015195,1704287522934,-622.97726142,0.00040496,30]
[310015196,1704287522970,-622.97726142,0.00040496,30]
[310015197,1704287523003,-622.97726142,0.00040496,30]
[310015198,1704287523039,-622.97726142,0.00040496,30]
[310015199,1704287523072,-622.97726142,0.00040496,30]
[310015200,1704287523105,-622.97726142,0.00040496,30]
[310015201,1704287523139,-622.97726142,0.00040496,30]
[310015202,1704287523172,-622.97726142,0.00040496,30]
[310015203,1704287523209,-622.97726142,0.00040496,30]
[310015204,1704287523242,-622.97726142,0.00040496,30]
[310015205,1704287523280,-622.97726142,0.00040496,30]
[310015206,1704287523315,-622.97726142,0.00040496,30]
[310015207,1704287523350,-622.97726142,0.00040496,30]
[310015208,1704287523382,-622.97726142,0.00040496,30]
[310015209,1704287523417,-622.97726142,0.00040496,30]
[310015210,1704287523450,-622.97726142,0.00040496,30]
[310015211,1704287523484,-622.97726142,0.00040496,30]
[310015212,1704287523519,-622.97726142,0.00040496,30]
[310015213,1704287523640,-622.97726142,0.00040495,4]
[310015214,1704287523675,-622.97726142,0.00040495,4]
[310015215,1704287523708,-622.97726142,0.00040495,4]
[310015216,1704287523741,-622.97726142,0.00040495,4]
[310015217,1704287523801,-622.97726142,0.00040495,4]
[310015297,1704288356101,-154.75239617,0.00032586,4]
[310015298,1704288356122,-751.97097364,0.00032586,4]
[310015299,1704288356142,-461.42900868,0.00032586,4]
[310015300,1704288356162,-154.75239617,0.00032587,4]
[310015301,1704288356182,-626.27117964,0.00032587,4]
[310015302,1704288356201,-154.75239617,0.00032587,4]
[310015303,1704288356229,-239.48878468,0.00032587,4]
[310015304,1704288356251,-917.73129115,0.00032588,4]
[310015305,1704288356272,-1603.27927877,0.00032588,4]
[310015306,1704288356294,-169.85444588,0.00032588,4]
[310015307,1704288356315,-823.56526853,0.00032588,4]
[310015308,1704288356335,-6454.08669701,0.00032588,4]
[310015309,1704288356355,-342.48956173,0.00032588,2]
[310015310,1704288356376,-3827.31,0.00032589,3]
[310015311,1704288356397,-3189.43,0.00032589,3]
[310015312,1704288356417,-394.96400341,0.00032597,4]
[310015313,1704288356437,-218.29502123,0.00032597,4]
[310015314,1704288356457,-210.35056589,0.00032597,4]
[310015315,1704288356481,-172.84545203,0.00032597,4]
[310015316,1704288356503,-154.75239617,0.00032598,5]
[310015317,1704288356523,-179.88761382,0.00032598,4]
[310015318,1704288356543,-1050.54870749,0.00032598,2]
[310015319,1704288356563,-183.20108502,0.00032598,4]
[310015320,1704288356584,-698.95,0.00032598,4]
[310015321,1704288356603,-1269.02823523,0.00032598,4]
[310015322,1704288356624,-1573.58742411,0.00032598,4]
[310015323,1704288356645,-10657.47396206,0.00032598,2]
[310015324,1704288356666,-8868.98698529,0.00032599,4]
[310015325,1704288356687,-35439.93903635,0.00032599,4]
[310015326,1704288356707,-2065.30892256,0.00032599,4]
[310015327,1704288356731,-11848.43033112,0.00032599,4]
[310015344,1704288425266,-2808.26480597,0.00031582,4]
[310015345,1704288425288,-474.867143,0.00031583,2]
[310015346,1704288425309,-154.75239617,0.00032482,4]
[310015347,1704288425330,-606.05653356,0.00032482,4]
[310015348,1704288425351,-4665.85614911,0.00032482,4]
[310015349,1704288425374,-325.37966407,0.00032483,4]
[310015350,1704288425394,-309.19239456,0.00032483,4]
[310015351,1704288425415,-156.69710926,0.00032483,4]
[310015352,1704288425436,-169.84217428,0.00032484,6]
[310015353,1704288425457,-7987.1129013,0.00032579,4]
[310015354,1704288425479,-1774.60609081,0.0003258,4]
[310015355,1704288425500,-6534.9223021,0.0003258,4]
[310015356,1704288425525,-1209.36727395,0.00032581,4]
[310015357,1704288425546,-13303.66907742,0.00032581,2]
[310015358,1704288425570,-4027.22436996,0.00032582,4]
[310015359,1704288425609,-912.79105878,0.00032582,4]
[310015360,1704288425631,-154.75239617,0.00032583,4]
[310015361,1704288425653,-6595.47632573,0.00032583,4]
[310015362,1704288425675,-606.05653356,0.00032583,4]
[310015363,1704288425698,-606.05653356,0.00032583,4]
[310015364,1704288425721,-363.0,0.00032599,2]
[310015365,1704288425767,-8383.29754668,0.00032599,4]
[310015366,1704288433115,-7718.4854707,0.00032599,4]
[310015367,1704288433136,-174.573777,0.00032658,2]
[310015368,1704288433159,-2631.63248071,0.00033,4]
[310015369,1704288433182,-268.52109404,0.00033672,4]
[310015370,1704288433204,-200.0,0.00033951,30]
[310015371,1704288433224,-24900.0,0.00033989,2]
[310015372,1704288433246,-1000.0,0.00034,7]
[310015373,1704288433271,-166.666666,0.00034137,2]
[310015374,1704288433291,-4657.66153763,0.0003452,2]
[310015375,1704288433311,-1482.664914,0.00034521,2]
[310015376,1704288433332,-250.0,0.00034727,2]
[310015377,1704288433351,-3352.6578284,0.00034727,2]
[310015378,1704288433370,-1024.66431453,0.00034998,4]
[310015379,1704288433391,-4497.7533394,0.00035,14]
[310015380,1704288433410,-590.27084275,0.00035,2]
[310015381,1704288433430,-4177.42015254,0.00035064,4]
[310015382,1704288433451,-1454.45537407,0.00035065,14]
[310015383,1704288433470,-166.666666,0.00035067,2]
[310015384,1704288433492,-414.132492,0.00035616,120]
[310015385,1704288433512,-1482.664914,0.00035798,2]
[310015386,1704288433535,-155.0,0.00035825,2]
[310015387,1704288433556,-250.0,0.00035879,15]
[310015388,1704288433577,-3423.32,0.0003599,3]
[310015389,1704288433597,-166.666666,0.00035998,2]
[310015390,1704288433617,-229.99225833,0.00036,4]
[310015391,1704288433639,-28502.80063026,0.00036,4]
[310015392,1704288433659,-169.84217424,0.00036459,8]
[310015393,1704288433680,-167.3604156,0.00036724,2]
[310015394,1704288433700,-167.3604156,0.00036725,2]
[310015395,1704288433720,-167.3604156,0.00036725,2]
[310015396,1704288433739,-166.666666,0.00036929,2]
[310015397,1704288433758,-1482.664914,0.00037075,2]
[310015398,1704288433785,-155.0,0.00037195,2]
[310015399,1704288433805,-14784.7628339,0.00037832,2]
[310015400,1704288433826,-166.666666,0.00037859,2]
[310015401,1704288433846,-731.79987618,0.00038,120]
[310015402,1704288433867,-1482.664914,0.00038352,2]
[310015403,1704288433889,-2316.784794,0.00038539,2]
[310015404,1704288433911,-156.94398031,0.00038547,2]
[310015405,1704288433934,-2629.17854101,0.00038555,2]
[310015406,1704288433955,-174.25051347,0.00038555,2]
[310015407,1704288433976,-700.0,0.00038555,2]
[310015408,1704288433996,-155.0,0.00038565,2]
[310015409,1704288434024,-1852.22106567,0.00038738,2]
[310015410,1704288434047,-1657.71926142,0.00038738,2]
[310015411,1704288434070,-1950.48056146,0.00038738,2]
[310015412,1704288434092,-166.666666,0.0003879,2]
[310015413,1704288434112,-3326.08447944,0.000388,45]
[310015414,1704288434134,-1585.63164398,0.000388,14]
[310015415,1704288434155,-184.76548466,0.00038905,2]
[310015416,1704288434175,-184.77970273,0.00038905,2]
[310015417,1704288434196,-350.0,0.00039467,30]
[310015418,1704288434216,-1482.664914,0.0003963,2]
[310015419,1704288434240,-155.0,0.00039935,2]
[310015420,1704288434261,-297.25114356,0.0004,2]
[310015421,1704288434289,-169.84217424,0.00040433,9]
[310015422,1704288434309,-8217.22424844,0.00040483,4]
[310015423,1704288434331,-175.188123,0.00040494,2]
[310015424,1704288434351,-366.65000021,0.00040495,4]
[310015425,1704288434373,-154.79876161,0.00040495,14]
[310015426,1704288434394,-36867.56977396,0.00040496,30]
[310015427,1704288434414,-10203.25029311,0.00040498,4]
[310015428,1704288434434,-968.6645911,0.00041096,7]
[310015429,1704288434454,-155.0,0.00041305,2]
[310015430,1704288434474,-414.132492,0.00041553,120]
[310015431,1704288434494,-273.7014682,0.00042649,4]
[310015432,1704288434518,-1798.38562756,0.0004265,4]
[310015433,1704288434539,-715.73849101,0.0004265,4]
[310015434,1704288434559,-240.40064673,0.0004265,4]
[310015435,1704288434580,-903.91391262,0.00042651,5]
[310015436,1704288434600,-1048.83576131,0.00042651,4]
[310015437,1704288434620,-155.0,0.00042675,2]
[310015438,1704288434640,-10135.98512604,0.00042747,4]
[310015439,1704288434660,-1760.44160387,0.00042748,2]
[310015440,1704288434680,-182.78303,0.00042857,30]
[310015441,1704288434700,-1625.02997155,0.000429,2]
[310015442,1704288434720,-4808.08580524,0.00043,7]
[310015443,1704288434741,-537.71425279,0.00043,2]
[310015444,1704288434761,-433.0,0.00043,90]
[310015445,1704288434783,-433.0,0.00043014,90]
[310015446,1704288434805,-621.15297392,0.00043201,15]
[310015447,1704288434830,-200.0,0.00043413,30]
[310015448,1704288434852,-289.0,0.00043413,30]
[310015449,1704288434947,-182.69812024,0.00043647,10]
[310015450,1704288434971,-1000.0,0.00043817,14]
[310015451,1704288434990,-250.0,0.00043835,10]
[310015452,1704288435010,-550.0,0.00043835,7]
[310015453,1704288435034,-5000.0,0.00043881,15]
[310015454,1704288435055,-5000.0,0.00043881,15]
[310015455,1704288435075,-275.36172513,0.00044,4]
[310015456,1704288435095,-3000.0,0.00044,120]
[310015457,1704288435115,-1000.0,0.00044,44]
[310015458,1704288435137,-155.0,0.00044045,2]
[310015459,1704288435159,-550.0,0.00044109,7]
[310015460,1704288435179,-350.0,0.00044383,7]
[310015461,1704288435200,-169.84217424,0.00044408,11]
[310015462,1704288435221,-24770.35343376,0.00044447,4]
[310015463,1704288435244,-150.0,0.00044868,60]
[310015464,1704288435263,-433.0,0.00044877,90]
[310015465,1704288435286,-150.0,0.00044878,60]
[310015466,1704288435306,-150.0,0.00044888,60]
[310015467,1704288435327,-154.81422293,0.00044896,4]
[310015468,1704288435347,-154.81422293,0.00044896,4]
[310015469,1704288435367,-154.81422293,0.00044896,4]
[310015470,1704288435388,-154.79876161,0.00044896,4]
[310015471,1704288435407,-216.87444858,0.00044896,4]
[310015472,1704288435428,-155.23486332,0.00044896,30]
[310015473,1704288435448,-2898.87837235,0.00044896,30]
[310015474,1704288435467,-2698.71304933,0.00044896,5]
[310015475,1704288435487,-7157.20037508,0.00044896,2]
[310015476,1704288435506,-155.03908595,0.00044896,4]
[310015477,1704288435529,-328.76785176,0.00044896,4]
[310015478,1704288435547,-250.04269304,0.00044896,4]
[310015479,1704288435567,-155.31713268,0.00044896,4]
[310015480,1704288435587,-206.02436682,0.00044896,4]
[310015481,1704288435607,-364.11108843,0.00044896,4]
[310015482,1704288435629,-180.54702941,0.00044896,4]
[310015483,1704288435649,-1050.54870749,0.00044896,5]
[310015484,1704288435670,-859.39539845,0.00044896,4]
[310015485,1704288435689,-186.84906512,0.00044896,4]
[310015486,1704288435709,-225.04692382,0.00044896,4]
[310015487,1704288435730,-283.28027204,0.00044896,4]
[310015488,1704288435751,-343.17485352,0.00044896,4]
[310015489,1704288435773,-786.23427653,0.00044896,4]
[310015490,1704288435793,-223.20608532,0.00044896,4]
[310015491,1704288435814,-2391.31431135,0.00044896,4]
[310015492,1704288435834,-197.53765946,0.00044896,4]
[310015493,1704288435855,-261.39036814,0.00044896,4]
[310015494,1704288435876,-1074.02825654,0.00044896,4]
[310015495,1704288435897,-276.32066635,0.00044896,4]
[310015496,1704288435919,-486.35856352,0.00044896,4]
[310015497,1704288435943,-691.03787163,0.00044896,4]
[310015498,1704288435965,-10617.69929148,0.00044896,2]
[310015499,1704288435985,-391.41664198,0.00044896,2]
[310015500,1704288436005,-2097.15281013,0.00044897,4]
[310015501,1704288436028,-167.04174259,0.00044897,4]
[310015502,1704288436048,-500.0,0.00044897,4]
[310015503,1704288436068,-422.91701703,0.00044897,4]
[310015504,1704288436088,-500.0,0.00044897,4]
[310015505,1704288436109,-289.81391312,0.00044897,4]
[310015506,1704288436129,-171.68807952,0.00044897,4]
[310015507,1704288436152,-500.0,0.00044897,4]
[310015508,1704288436172,-500.0,0.00044897,4]
[310015509,1704288436192,-276.8379412,0.00044897,4]
[310015510,1704288436214,-268.6752318,0.00044897,4]
[310015511,1704288436238,-636.06551833,0.00044898,3]
[310015512,1704288436259,-101219.5715051,0.00044898,2]
[310015513,1704288436328,-154.75239617,0.00038351,5]
[310015514,1704288436347,-371.04881992,0.00040405,4]
[310015515,1704288436367,-15521.16172391,0.00044898,2]
[310015516,1704288436465,-353.36273664,0.00044896,4]
[310015517,1704288436486,-144828.9033555,0.00044898,2]
[310015518,1704288436506,-151.31843755,0.000449,6]
[310015520,1704288436529,-25586.64582357,0.000449,5]
[310015521,1704288436549,-18439.03671954,0.00044995,120]
[310015522,1704288436568,-456.36719083,0.00044996,4]
[310015523,1704288436589,-617.91828407,0.00044996,20]
[310015524,1704288436609,-464.40088633,0.00044996,4]
[310015525,1704288436630,-2711.32046582,0.00044996,4]
[310015526,1704288436725,-272.24780483,0.00044996,4]
[310015527,1704288436747,-2344.66991584,0.00044996,4]
[310015528,1704288436772,-154.82968734,0.00044996,7]
[310015529,1704288436793,-7215.82199052,0.00044996,120]
[310015530,1704288436815,-7713.61089134,0.00044996,2]
[310015531,1704288436838,-864.741475,0.00044997,4]
[310015532,1704288436858,-246.50055964,0.00044997,4]
[310015533,1704288436879,-16784.6133561,0.00044997,4]
[310015534,1704288436900,-245.32571031,0.00044997,4]
[310015535,1704288436921,-305.48618331,0.00044997,4]
[310015536,1704288436943,-1893.58,0.00044997,7]
[310015537,1704288436965,-1893.58,0.00044997,7]
[310015538,1704288436986,-1893.58,0.00044997,7]
[310015539,1704288437007,-1893.58,0.00044997,7]
[310015540,1704288437032,-1893.58,0.00044997,7]
[310015541,1704288437053,-1893.58,0.00044997,7]
[310015542,1704288437074,-1893.58,0.00044997,7]
[310015543,1704288437095,-1893.58,0.00044997,7]
[310015544,1704288437116,-1893.58,0.00044997,7]
[310015545,1704288437138,-1893.58,0.00044997,7]
[310015546,1704288437159,-14535.75980768,0.00044998,4]
[310015547,1704288437186,-6311.58079319,0.00044998,4]
[310015548,1704288437206,-777.02372586,0.00044998,4]
[310015549,1704288437227,-296.79009175,0.00044998,4]
[310015550,1704288437256,-47608.70511907,0.00044998,4]
[310015551,1704288437280,-720.05299569,0.00044998,2]
[310015552,1704288437303,-1695.45803899,0.00044998,4]
[310015553,1704288437323,-5013.83485934,0.00044998,4]
[310015554,1704288437345,-172.74563845,0.00044998,4]
[310015555,1704288437365,-259.02433411,0.00044998,4]
[310015556,1704288437386,-265.74009475,0.00044998,2]
[310015557,1704288437408,-4082.5809896,0.00044998,4]
[310015558,1704288437428,-312.75268153,0.00044998,4]
[310015559,1704288437449,-2003.3710827,0.00044998,4]
[310015560,1704288437470,-309.52047896,0.00044998,4]
[310015561,1704288437490,-162.13777252,0.00044998,4]
[310015562,1704288437510,-2728.5110886,0.00044998,4]
[310015563,1704288437533,-324.36662127,0.00044998,4]
[310015564,1704288437556,-517.27606258,0.00044998,4]
[310015565,1704288437576,-3634.60055172,0.00044998,4]
[310015566,1704288437598,-2027.03693589,0.00044998,4]
[310015567,1704288437618,-1244.79480268,0.00044998,4]
[310015568,1704288437639,-983.83619575,0.00044999,4]
[310015569,1704288437660,-4417.46260769,0.00044999,4]
[310015570,1704288437680,-92211.62435032,0.00044999,4]
[310015571,1704288437708,-7224.37614024,0.00044999,4]
[310015572,1704288437729,-517.85261642,0.00044999,4]
[310015573,1704288437752,-1194.76959294,0.00044999,4]
[310015574,1704288437778,-4781.11668773,0.00044999,4]
[310015575,1704288437801,-264.38743631,0.00044999,4]
[310015576,1704288437823,-332.031668,0.00044999,4]
[310015577,1704288437844,-408.78516664,0.00044999,4]
[310015578,1704288437867,-2683.39758722,0.00044999,4]
[310015579,1704288437887,-343.96193713,0.00044999,2]
[310015580,1704288437908,-355.70711359,0.00044999,4]
[310015581,1704288437930,-154.89808162,0.00044999,2]
[310015582,1704288437952,-253.75021022,0.00044999,7]
[310015583,1704288437974,-169.16680681,0.00044999,30]
[310015584,1704288437994,-403.01284771,0.00044999,7]
[310015585,1704288438015,-332.6284559,0.00044999,7]
[310015586,1704288438045,-500.0,0.00044999,30]
[310015587,1704288438067,-500.0,0.00044999,7]
[310015588,1704288438088,-388.4189706,0.00044999,30]
[310015589,1704288438109,-500.0,0.00044999,7]
[310015590,1704288438131,-71723.89136092,0.00045,7]
[310015592,1704288443093,-917.73129115,0.00039999,4]
[310015594,1704288443114,-9128.12903006,0.00040406,4]
[310015595,1704288443134,-181.99452768,0.00040406,4]
[310015596,1704288443158,-859.39539845,0.00042648,4]
[310015597,1704288443178,-271.0,0.00043,90]
[310015598,1704288443199,-271.0,0.00043014,90]
[310015599,1704288443224,-1000.0,0.00043823,14]
[310015600,1704288443248,-5332.40702756,0.00043998,4]
[310015601,1704288443269,-271.0,0.00044877,90]
[310015602,1704288443296,-4564.50046911,0.00044896,4]
[310015603,1704288443317,-9999.15016783,0.00044896,2]
[310015604,1704288443339,-179.08241058,0.00044896,4]
[310015605,1704288443359,-318.71851607,0.00044896,4]
[310015607,1704288443382,-355.95834539,0.00044896,4]
[310015608,1704288443402,-3209.44549254,0.00044896,4]
[310015609,1704288443423,-1645.97456557,0.00044896,4]
[310015610,1704288443443,-641.65330945,0.00044989,4]
[310015611,1704288443465,-2852.76,0.0004499,3]
[310015612,1704288443485,-2028.12124664,0.00044999,4]
[310015613,1704288443508,-141530.39006179,0.00045,7]
[310015614,1704288452082,-174.9137953,0.00038,7]
[310015615,1704288452103,-154.75239617,0.00040498,8]
[310015616,1704288452123,-823.45673079,0.00044098,4]
[310015617,1704288452143,-1022.27540051,0.00044851,4]
[310015618,1704288452163,-240.40064673,0.00044988,4]
[310015619,1704288452184,-31943.10096971,0.00044988,4]
[310015620,1704288452206,-2630.41248819,0.00044989,4]
[310015621,1704288452227,-7468.48263097,0.00044989,4]
[310015622,1704288452252,-2377.3,0.0004499,3]
[310015623,1704288452272,-1662.23471322,0.00044998,14]
[310015624,1704288452301,-202.00896218,0.00044998,4]
[310015625,1704288452322,-1620.85304934,0.00044998,2]
[310015637,1704288548895,-225.3382533,0.00033989,2]
[310015638,1704288548926,-154.75239617,0.00038642,5]
[310015639,1704288548955,-766.18751154,0.00038642,2]
[310015640,1704288548994,-1146.27816101,0.00038642,2]
[310015641,1704288549027,-342.64443734,0.00038642,2]
[310015642,1704288549059,-199.89454369,0.00038643,2]
[310015643,1704288549092,-603.73917998,0.00040496,4]
[310015644,1704288549166,-445.09658133,0.00040496,4]
[310015645,1704288549200,-701.18157968,0.00040498,4]
[310015646,1704288549252,-398.70544712,0.00040498,4]
[310015647,1704288550098,-3663.69097358,0.00040498,4]
[310015851,1704288632866,-154.75239617,0.00038796,5]
[310015853,1704288632876,-994.85799583,0.00038797,2]
[310015855,1704288632886,-1000.0,0.00040496,7]
[310015857,1704288632895,-371.04881992,0.00040497,4]
[310015859,1704288632905,-1048.83576131,0.00040497,4]
[310015861,1704288632914,-3359.17322084,0.00040498,4]
[310015862,1704288632923,-715.73849101,0.00041065,4]
[310015864,1704288632936,-166.666666,0.00041066,2]
[310015865,1704288632945,-166.666666,0.00042186,2]
[310015866,1704288632955,-3209.44549254,0.00042355,4]
[310015867,1704288632965,-859.39539845,0.00042355,4]
[310015868,1704288632974,-262.84829523,0.00042356,4]
[310015869,1704288632984,-200.0,0.00042358,30]
[310015870,1704288632993,-1382.13402737,0.00042717,4]
[310015871,1704288633002,-202.3154101,0.0004282,2]
[310015873,1704288633011,-169.0,0.00043,90]
[310015875,1704288633021,-169.0,0.00043014,90]
[310015876,1704288633030,-620.05770981,0.00043211,15]
[310015878,1704288633039,-166.666666,0.00043306,2]
[310015880,1704288633048,-16807.34233205,0.00043767,4]
[310015881,1704288633057,-8641.08230169,0.00043767,4]
[310015882,1704288633066,-2697.34,0.00043768,3]
[310015883,1704288633076,-2247.78,0.00043768,3]
[310015885,1704288633085,-1873.15,0.00043768,3]
[310015886,1704288633094,-14643.94312968,0.00043778,4]
[310015887,1704288633108,-51573.05687032,0.00043778,4]
[310015888,1704288633118,-454.650242,0.00043994,120]
[310015889,1704288633127,-971.47434902,0.00044098,4]
[310015890,1704288633136,-166.666666,0.00044425,2]
[310015891,1704288633146,-1573.71175048,0.00044773,14]
[310015892,1704288633155,-169.0,0.00044877,90]
[310015893,1704288633164,-3403.26224406,0.00044998,2]
[310015894,1704288633174,-7928.30997934,0.00044998,2]
[310015895,1704288633186,-2689.26861931,0.00044998,4]
[310015896,1704288633195,-154.84515485,0.00044998,4]
[310015897,1704288633204,-308.19136448,0.00044998,2]
[310015898,1704288633213,-154.84515485,0.00044998,4]
[310015899,1704288633223,-164.28949265,0.00044998,4]
[310015900,1704288633233,-177.59058071,0.00044998,4]
[310015901,1704288633242,-250.10136013,0.00044998,4]
[310015902,1704288633252,-499.77260503,0.00044998,4]
[310015903,1704288633261,-3473.72144789,0.00044998,7]
[310015904,1704288633271,-285.17267218,0.00044998,4]
[310015905,1704288633281,-225.63647227,0.00044998,4]
[310015906,1704288633291,-2463.42175574,0.00044998,4]
[310015907,1704288633300,-196.54617733,0.00044998,14]
[310015908,1704288633314,-3731.01777703,0.00044998,4]
[310015909,1704288633323,-6141.33287648,0.00044998,4]
[310015910,1704288633332,-585.77366444,0.00044998,4]
[310015911,1704288633341,-720.05299569,0.00044998,2]
[310015912,1704288633350,-1773.68924842,0.00044998,4]
[310015913,1704288633361,-1018.88153191,0.00044998,4]
[310015914,1704288633371,-154.79876161,0.00044998,4]
[310015915,1704288633380,-154.79876161,0.00044998,2]
[310015916,1704288633389,-1468.27210417,0.00044998,2]
[310015917,1704288633437,-409.59075215,0.00044998,2]
[310015918,1704288633446,-169.68033041,0.00044998,4]
[310015919,1704288633455,-154.84515485,0.00044999,4]
[310015920,1704288633465,-309.79718211,0.00044999,4]
[310015921,1704288633474,-1501.76812413,0.00044999,4]
[310015922,1704288633483,-444.2094853,0.00044999,4]
[310015923,1704288633492,-2191.29657,0.00044999,4]
[310015924,1704288633501,-318.03275916,0.00045,3]
[310015925,1704288633510,-169701.3183233,0.00045,7]
[310015926,1704288633526,-501.51931789,0.00045,7]
[310015959,1704288638134,-1989.429225,0.00040496,4]
[310015994,1704288638670,-38.69202164,0.00040496,4]
[310015995,1704288638681,-674.59524886,0.00040496,2]
[310015996,1704288638694,-5042.09565976,0.00040497,4]
[310015997,1704288638715,-272.62415793,0.00040497,4]
[310015998,1704288638727,-4821.26530835,0.00040497,4]
[310015999,1704288638738,-1560.96,0.0004499,3]
[310016000,1704288638748,-314.0,0.00045,2]
[310016001,1704288638758,-244184.47642866,0.00045,7]
[310016002,1704288638788,-18052.67149776,0.00045,7]
[310016003,1704288638799,-366.0,0.00045,30]
[310016004,1704288638809,-1000.0,0.00045,45]
[310016005,1704288638818,-2178.86090068,0.00045,15]
[310016006,1704288638828,-1500.0,0.00045,3]
[310016007,1704288638838,-2156.57,0.00045,2]
[310016008,1704288638847,-1029.52745226,0.00045072,2]
[310016009,1704288638857,-291.736,0.00045074,2]
[310016010,1704288638867,-500.0,0.00045205,27]
[310016011,1704288638876,-155.0,0.00045415,2]
[310016012,1704288638886,-500.0,0.00045479,27]
[310016013,1704288638895,-166.666666,0.00045545,2]
[310016014,1704288638905,-152.15,0.00045568,7]
[310016015,1704288638915,-150.0,0.00045578,7]
[310016016,1704288638925,-160.0,0.00045584,3]
[310016017,1704288638937,-150.0,0.00045588,7]
[310016018,1704288638946,-161.96718927,0.00045701,10]
[310016019,1704288638956,-155.13760345,0.00045751,4]
[310016020,1704288638965,-349.27054601,0.00045751,120]
[310016021,1704288638974,-1000.0,0.00045752,30]
[310016022,1704288638983,-1000.0,0.00045752,30]
[310016023,1704288638991,-616.50100192,0.00045752,30]
[310016024,1704288639001,-151.0,0.00045753,2]
[310016025,1704288639018,-151.0,0.00045753,2]
[310016026,1704288639027,-151.0,0.00045753,2]
[310016027,1704288639036,-151.0,0.00045753,2]
[310016028,1704288639044,-289.0,0.00045753,2]
[310016029,1704288639053,-151.0,0.00045753,3]
[310016030,1704288639140,-151.0,0.00045753,3]
[310016031,1704288639149,-151.0,0.00045753,3]
[310016032,1704288639158,-151.0,0.00045753,3]
[310016033,1704288639167,-227.0,0.00045753,3]
[310016034,1704288639176,-672.663464,0.00045753,7]
[310016035,1704288639188,-672.663464,0.00045753,7]
[310016036,1704288639197,-672.663464,0.00045753,7]
[310016037,1704288639206,-672.663464,0.00045753,7]
[310016038,1704288639215,-672.663464,0.00045753,7]
[310016039,1704288639224,-672.663464,0.00045753,7]
[310016040,1704288639234,-672.663464,0.00045753,7]
[310016041,1704288639245,-672.663464,0.00045753,7]
[310016042,1704288639254,-672.663464,0.00045753,7]
[310016043,1704288639263,-672.663464,0.00045753,7]
[310016044,1704288639273,-672.663464,0.00045753,7]
[310016045,1704288639282,-672.663464,0.00045753,7]
[310016046,1704288639291,-672.663464,0.00045753,7]
[310016047,1704288639300,-672.663464,0.00045753,7]
[310016048,1704288639312,-672.663464,0.00045753,7]
[310016049,1704288639321,-672.663464,0.00045753,7]
[310016050,1704288639330,-672.663464,0.00045753,7]
[310016051,1704288639339,-672.663464,0.00045753,7]
[310016052,1704288639348,-672.663464,0.00045753,7]
[310016053,1704288639360,-672.663462,0.00045753,7]
[310016054,1704288639370,-662.411675,0.00045753,7]
[310016055,1704288639379,-662.411675,0.00045753,7]
[310016056,1704288639387,-662.411675,0.00045753,7]
[310016057,1704288639397,-662.411675,0.00045753,7]
[310016059,1704288639406,-662.411675,0.00045753,7]
[310016060,1704288639416,-662.411675,0.00045753,7]
[310016061,1704288639425,-662.411675,0.00045753,7]
[310016062,1704288639436,-662.411675,0.00045753,7]
[310016063,1704288639445,-662.411675,0.00045753,7]